Workbook

Sheet LabCircle
O1: DESIGN Data | T1: Transform and Calculate | Y1: Ellipse 0-360° x 2° | AC1: Ellipse 0-360° x 15° | AE1: DESIGN CIE
A2: Center a | F2: 1. Open FilmStar DESIGN, load a design, set tolerance values (<Ctrl+N>) | N2: a* | O2: b* | P2: L* | R2: Angle | S2: Radius | T2: X | U2: Y | V2: Pass | X2: Angle | Y2: X | Z2: Y | AB2: Angle | AC2: X | AD2: Y | AE2: Tolerance Box
A3: 51.5 | F3: 2. Click [Calculate] to draw scatter plot (1000 iterations, so not instant) | N3: 53.34623337 | O3: -47.00511169 | P3: 37.9276123 | R3: =(ATAN2($N3-$A$3, $O3-$A$6))-$C$15 -> 0.11232 | S3: =SQRT(($N3-$A$3)^2+($O3-$A$6)^2) -> 2.10210 | T3: =$S3*COS($R3) -> 2.08885 | U3: =$S3*SIN($R3) -> 0.23562 | V3: =IF(($T3/$A$9)^2 +($U3/$A$12)^2<=1, "OK", "NG") -> OK | X3: 0.00000 | Y3: =$A$3+$A$9*COS($X3)*COS($C$15)-$A$12*SIN($X3)*SIN($C$15) -> 53.95745613 | Z3: =$A$6+$A$9*COS($X3)*SIN($C$15)+$A$12*SIN($X3)*COS($C$15) -> -47.72072931 | AB3: 0.00000 | AC3: =$A$3+$A$9*COS($AB3)*COS($C$15)-$A$12*SIN($AB3)*SIN($C$15) -> 53.95746 | AD3: =$A$6+$A$9*COS($AB3)*SIN($C$15)+$A$12*SIN($AB3)*COS($C$15) -> -47.72073 | AE3: =TEXT($AC3, "0" & DeciSep() & "000") & ListSep() & TEXT($AD3, "0" & DeciSep() & "000") -> 53.957,-47.721
N4: 52.33115005 | O4: -46.30498886 | P4: 38.05745697 | R4: 0.25917 | S4: 0.88534 | T4: =$S4*COS($R4) -> 0.85577 | U4: =$S4*SIN($R4) -> 0.22690 | V4: OK | X4: 0.03491 | Y4: 53.97597665 | Z4: -47.69109309 | AB4: 0.26180 | AC4: =$A$3+$A$9*COS($AB4)*COS($C$15)-$A$12*SIN($AB4)*SIN($C$15) -> 54.02217 | AD4: =$A$6+$A$9*COS($AB4)*SIN($C$15)+$A$12*SIN($AB4)*COS($C$15) -> -47.45008 | AE4: =TEXT($AC4, "0" & DeciSep() & "000") & ListSep() & TEXT($AD4, "0" & DeciSep() & "000") -> 54.022,-47.450
A5: Center b | N5: 52.24591446 | O5: -45.84764099 | P5: 38.12381744 | R5: 0.81235 | S5: 0.76132 | T5: 0.52363 | U5: 0.55264 | V5: OK | X5: 0.06981 | Y5: 53.99148056 | Z5: -47.65939654 | AB5: 0.52360 | AC5: 53.91501 | AD5: -47.08062 | AE5: =TEXT($AC5, "0" & DeciSep() & "000") & ListSep() & TEXT($AD5, "0" & DeciSep() & "000") -> 53.915,-47.081
A6: -46 | N6: 52.1515007 | O6: -46.02385712 | P6: 38.20175934 | R6: 0.57426 | S6: 0.65194 | T6: 0.54736 | U6: 0.35414 | V6: OK | X6: 0.10472 | Y6: 54.00394899 | Z6: -47.62567827 | AB6: 0.78540 | AC6: 53.64326 | AD6: -46.63751 | AE6: =TEXT($AC6, "0" & DeciSep() & "000") & ListSep() & TEXT($AD6, "0" & DeciSep() & "000") -> 53.643,-46.638
N7: 50.0247612 | O7: -45.57911682 | P7: 38.13668442 | R7: 3.47454 | S7: 1.53410 | T7: -1.44985 | U7: -0.50139 | V7: OK | X7: 0.13963 | Y7: 54.01336675 | Z7: -47.58997936 | AB7: 1.04720 | AC7: 53.22546 | AD7: -46.15096 | AE7: =TEXT($AC7, "0" & DeciSep() & "000") & ListSep() & TEXT($AD7, "0" & DeciSep() & "000") -> 53.225,-46.151
A8: Radius a | N8: 51.25930786 | O8: -45.48171616 | P8: 38.34155655 | R8: 2.61643 | S8: 0.57145 | T8: -0.49444 | U8: 0.28650 | V8: OK | X8: 0.17453 | Y8: 54.01972236 | Z8: -47.5523433 | AB8: 1.30900 | AC8: 52.69007 | AD8: -45.65412 | AE8: =TEXT($AC8, "0" & DeciSep() & "000") & ListSep() & TEXT($AD8, "0" & DeciSep() & "000") -> 52.690,-45.654
A9: 3 | N9: 52.98931885 | O9: -48.03560257 | P9: 37.60581207 | R9: -0.32829 | S9: 2.52225 | T9: 2.38755 | U9: -0.81323 | V9: NG | X9: 0.20944 | Y9: 54.02300807 | Z9: -47.51281596 | AB9: 1.57080 | AC9: 52.07358 | AD9: -45.18085 | AE9: =TEXT($AC9, "0" & DeciSep() & "000") & ListSep() & TEXT($AD9, "0" & DeciSep() & "000") -> 52.074,-45.181
N10: 51.25162125 | O10: -45.74010468 | P10: 38.12364578 | R10: 2.94441 | S10: 0.35950 | T10: -0.35253 | U10: 0.07043 | V10: OK | X10: 0.24435 | Y10: 54.02321988 | Z10: -47.47144548 | AB10: 1.83260 | AC10: 51.41800 | AD10: -44.76340 | AE10: =TEXT($AC10, "0" & DeciSep() & "000") & ListSep() & TEXT($AD10, "0" & DeciSep() & "000") -> 51.418,-44.763
A11: Radius b | N11: 52.29392624 | O11: -46.75446701 | P11: 37.98443222 | R11: -0.14905 | S11: 1.09523 | T11: 1.08309 | U11: -0.16265 | V11: OK | X11: 0.27925 | Y11: 54.02035754 | Z11: -47.42828227 | AB11: 2.09440 | AC11: 50.76800 | AD11: -44.43023 | AE11: =TEXT($AC11, "0" & DeciSep() & "000") & ListSep() & TEXT($AD11, "0" & DeciSep() & "000") -> 50.768,-44.430
A12: 1 | N12: 52.04102325 | O12: -46.17462158 | P12: 38.18009567 | R12: 0.29866 | S12: 0.56851 | T12: 0.54334 | U12: 0.16728 | V12: OK | X12: 0.31416 | Y12: 54.01442454 | Z12: -47.38337892 | AB12: 2.35619 | AC12: 50.16790 | AD12: -44.20403 | AE12: =TEXT($AC12, "0" & DeciSep() & "000") & ListSep() & TEXT($AD12, "0" & DeciSep() & "000") -> 50.168,-44.204
N13: 51.82406235 | O13: -44.56777573 | P13: 38.60111237 | R13: 1.95914 | S13: 1.46843 | T13: -0.55603 | U13: 1.35908 | V13: NG | X13: 0.34907 | Y13: 54.00542809 | Z13: -47.33679013 | AB13: 2.61799 | AC13: 49.65857 | AD13: -44.10023 | AE13: =TEXT($AC13, "0" & DeciSep() & "000") & ListSep() & TEXT($AD13, "0" & DeciSep() & "000") -> 49.659,-44.100
A14: Tilt (deg) | N14: 50.83696365 | O14: -46.02674866 | P14: 38.0174942 | R14: -2.49041 | S14: 0.66358 | T14: -0.52779 | U14: -0.40221 | V14: OK | X14: 0.38397 | Y14: 53.99337916 | Z14: -47.28857268 | AB14: 2.87979 | AC14: 49.27473 | AD14: -44.12589 | AE14: =TEXT($AC14, "0" & DeciSep() & "000") & ListSep() & TEXT($AD14, "0" & DeciSep() & "000") -> 49.275,-44.126
A15: -35 | C15: =$A$15*PI()/180 -> -0.6109 | N15: 52.08446121 | O15: -46.77828979 | P15: 37.89139557 | R15: -0.31582 | S15: 0.97331 | T15: 0.92517 | U15: -0.30230 | V15: OK | X15: 0.41888 | Y15: 53.97829244 | Z15: -47.23878529 | AB15: 3.14159 | AC15: 49.04254 | AD15: -44.27927 | AE15: =TEXT($AC15, "0" & DeciSep() & "000") & ListSep() & TEXT($AD15, "0" & DeciSep() & "000") -> 49.043,-44.279
N16: 49.39414597 | O16: -45.41663361 | P16: 38.20001221 | R16: 3.48221 | S16: 2.18516 | T16: -2.05962 | U16: -0.73000 | V16: NG | X16: 0.45379 | Y16: 53.9601863 | Z16: -47.18748864 | AB16: 3.40339 | AC16: 48.97783 | AD16: -44.54992 | AE16: =TEXT($AC16, "0" & DeciSep() & "000") & ListSep() & TEXT($AD16, "0" & DeciSep() & "000") -> 48.978,-44.550
A17: Yield | N17: 52.52741241 | O17: -47.90085983 | P17: 37.74259567 | R17: -0.46441 | S17: 2.16075 | T17: 1.93190 | U17: -0.96779 | V17: NG | X17: 0.48869 | Y17: 53.9390828 | Z17: -47.13474521 | AB17: 3.66519 | AC17: 49.08499 | AD17: -44.91938 | AE17: =TEXT($AC17, "0" & DeciSep() & "000") & ListSep() & TEXT($AD17, "0" & DeciSep() & "000") -> 49.085,-44.919
A18: 72.0% | N18: 53.10593414 | O18: -46.80983353 | P18: 37.91743088 | R18: 0.14380 | S18: 1.79857 | T18: 1.78001 | U18: 0.25775 | V18: OK | X18: 0.52360 | Y18: 53.91500766 | Z18: -47.08061927 | AB18: 3.92699 | AC18: 49.35674 | AD18: -45.36249 | AE18: =TEXT($AC18, "0" & DeciSep() & "000") & ListSep() & TEXT($AD18, "0" & DeciSep() & "000") -> 49.357,-45.362
N19: 51.17485046 | O19: -44.18334961 | P19: 38.58663559 | R19: 2.35877 | S19: 1.84552 | T19: -1.30833 | U19: 1.30161 | V19: NG | X19: 0.55851 | Y19: 53.8879902 | Z19: -47.02517677 | AB19: 4.18879 | AC19: 49.77454 | AD19: -45.84904 | AE19: =TEXT($AC19, "0" & DeciSep() & "000") & ListSep() & TEXT($AD19, "0" & DeciSep() & "000") -> 49.775,-45.849
N20: 52.12979126 | O20: -46.00314331 | P20: 38.10192871 | R20: 0.60587 | S20: 0.62980 | T20: 0.51770 | U20: 0.35866 | V20: OK | X20: 0.59341 | Y20: 53.85806334 | Z20: -46.96848524 | AB20: 4.45059 | AC20: 50.30993 | AD20: -46.34588 | AE20: =TEXT($AC20, "0" & DeciSep() & "000") & ListSep() & TEXT($AD20, "0" & DeciSep() & "000") -> 50.310,-46.346
N21: 51.55813599 | O21: -45.90003586 | P21: 38.20950699 | R21: 1.65490 | S21: 0.11564 | T21: -0.00971 | U21: 0.11523 | V21: OK | X21: 0.62832 | Y21: 53.82526354 | Z21: -46.91061376 | AB21: 4.71239 | AC21: 50.92642 | AD21: -46.81915 | AE21: =TEXT($AC21, "0" & DeciSep() & "000") & ListSep() & TEXT($AD21, "0" & DeciSep() & "000") -> 50.926,-46.819
N22: 51.29535675 | O22: -46.43468094 | P22: 38.00415039 | R22: -1.39994 | S22: 0.48044 | T22: 0.08169 | U22: -0.47345 | V22: OK | X22: 0.66323 | Y22: 53.78963077 | Z22: -46.85163284 | AB22: 4.97419 | AC22: 51.58200 | AD22: -47.23660 | AE22: =TEXT($AC22, "0" & DeciSep() & "000") & ListSep() & TEXT($AD22, "0" & DeciSep() & "000") -> 51.582,-47.237
N23: 52.37856674 | O23: -46.39681625 | P23: 37.99117661 | R23: 0.18663 | S23: 0.96402 | T23: 0.94728 | U23: 0.17887 | V23: OK | X23: 0.69813 | Y23: 53.75120844 | Z23: -46.79161434 | AB23: 5.23599 | AC23: 52.23200 | AD23: -47.56977 | AE23: =TEXT($AC23, "0" & DeciSep() & "000") & ListSep() & TEXT($AD23, "0" & DeciSep() & "000") -> 52.232,-47.570
N24: 52.81063843 | O24: -45.10234451 | P24: 38.35630417 | R24: 1.21138 | S24: 1.58857 | T24: 0.55874 | U24: 1.48707 | V24: NG | X24: 0.73304 | Y24: 53.71004336 | Z24: -46.73063138 | AB24: 5.49779 | AC24: 52.83210 | AD24: -47.79597 | AE24: =TEXT($AC24, "0" & DeciSep() & "000") & ListSep() & TEXT($AD24, "0" & DeciSep() & "000") -> 52.832,-47.796
N25: 52.86727905 | O25: -46.07884216 | P25: 38.02928543 | R25: 0.55327 | S25: 1.36955 | T25: 1.16523 | U25: 0.71966 | V25: OK | X25: 0.76794 | Y25: 53.66618568 | Z25: -46.66875825 | AB25: 5.75959 | AC25: 53.34143 | AD25: -47.89977 | AE25: =TEXT($AC25, "0" & DeciSep() & "000") & ListSep() & TEXT($AD25, "0" & DeciSep() & "000") -> 53.341,-47.900
N26: 51.35200882 | O26: -44.30771637 | P26: 38.61757278 | R26: 2.26889 | S26: 1.69874 | T26: -1.09188 | U26: 1.30135 | V26: NG | X26: 0.80285 | Y26: 53.61968883 | Z26: -46.60607035 | AB26: 6.02139 | AC26: 53.72527 | AD26: -47.87411 | AE26: =TEXT($AC26, "0" & DeciSep() & "000") & ListSep() & TEXT($AD26, "0" & DeciSep() & "000") -> 53.725,-47.874
N27: 51.68540955 | O27: -46.70017242 | P27: 38.00164413 | R27: -0.70107 | S27: 0.72431 | T27: 0.55348 | U27: -0.46720 | V27: OK | X27: 0.83776 | Y27: 53.57060947 | Z27: -46.54264404 | AB27: 6.28319 | AC27: 53.95746 | AD27: -47.72073 | AE27: =TEXT($AC27, "0" & DeciSep() & "000") & ListSep() & TEXT($AD27, "0" & DeciSep() & "000") -> 53.957,-47.721
N28: 50.54677963 | O28: -46.46913528 | P28: 38.0079155 | R28: -2.07337 | S28: 1.06241 | T28: -0.51175 | U28: -0.93104 | V28: OK | X28: 0.87266 | Y28: 53.5190074 | Z28: -46.47855661
N29: 50.47615051 | O29: -45.1913414 | P29: 38.23519897 | R29: 3.08395 | S29: 1.30468 | T29: -1.30252 | U29: 0.07516 | V29: OK | X29: 0.90757 | Y29: 53.46494547 | Z29: -46.41388613
N30: 52.01104355 | O30: -44.25634003 | P30: 38.64929962 | R30: 1.89656 | S30: 1.81701 | T30: -0.58150 | U30: 1.72145 | V30: NG | X30: 0.94248 | Y30: 53.40848956 | Z30: -46.34871139
N31: 50.14848709 | O31: -46.24701691 | P31: 37.94997406 | R31: -2.34995 | S31: 1.37390 | T31: -0.96541 | U31: -0.97754 | V31: NG | X31: 0.97738 | Y31: 53.34970845 | Z31: -46.2831118
N32: 50.75675201 | O32: -46.87682343 | P32: 37.80622101 | R32: -1.66306 | S32: 1.14945 | T32: -0.10591 | U32: -1.14456 | V32: NG | X32: 1.01229 | Y32: 53.28867375 | Z32: -46.21716728
N33: 52.80023956 | O33: -47.62717438 | P33: 37.74715042 | R33: -0.28575 | S33: 2.08286 | T33: 1.99840 | U33: -0.58712 | V33: OK | X33: 1.04720 | Y33: 53.22545983 | Z33: -46.15095817
N34: 51.66907501 | O34: -45.75550079 | P34: 38.25343704 | R34: 1.57665 | S34: 0.29726 | T34: -0.00174 | U34: 0.29726 | V34: OK | X34: 1.08210 | Y34: 53.1601437 | Z34: -46.08456515
N35: 49.55528641 | O35: -45.01288605 | P35: 38.36581039 | R35: 3.28276 | S35: 2.18090 | T35: -2.15920 | U35: -0.30685 | V35: OK | X35: 1.11701 | Y35: =$A$3+$A$9*COS($X35)*COS($C$15)-$A$12*SIN($X35)*SIN($C$15) -> 53.09280495 | Z35: =$A$6+$A$9*COS($X35)*SIN($C$15)+$A$12*SIN($X35)*COS($C$15) -> -46.0180691
N36: 53.32006454 | O36: -47.70440292 | P36: 37.60795593 | R36: -0.14173 | S36: 2.49352 | T36: 2.46851 | U36: -0.35222 | V36: OK | X36: 1.15192 | Y36: 53.02352561 | Z36: -45.95155103
N37: 50.9512291 | O37: -44.14232254 | P37: 38.56449127 | R37: 2.46890 | S37: 1.93704 | T37: -1.51505 | U37: 1.20696 | V37: NG | X37: 1.18682 | Y37: 52.95239008 | Z37: -45.88509199
N38: 50.73244858 | O38: -45.82535553 | P38: 38.15128326 | R38: 3.52873 | S38: 0.78717 | T38: -0.72891 | U38: -0.29719 | V38: OK | X38: 1.22173 | Y38: 52.87948504 | Z38: -45.81877295
N39: 51.41452026 | O39: -44.8050499 | P39: 38.42850113 | R39: 2.25307 | S39: 1.19800 | T39: -0.75542 | U39: 0.92982 | V39: OK | X39: 1.25664 | Y39: 52.80489932 | Z39: -45.75267471
N40: 51.42427826 | O40: -45.81593704 | P40: 38.18120193 | R40: 2.57195 | S40: 0.19903 | T40: -0.16760 | U40: 0.10734 | V40: OK | X40: 1.29154 | Y40: 52.72872377 | Z40: -45.68687779
N41: 50.85609818 | O41: -44.76522827 | P41: 38.41757965 | R41: 2.66234 | S41: 1.39258 | T41: -1.23569 | U41: 0.64214 | V41: OK | X41: 1.32645 | Y41: 52.65105121 | Z41: -45.62146237
N42: 52.31007767 | O42: -44.23867416 | P42: 38.66656113 | R42: 1.75058 | S42: 1.93868 | T42: -0.34668 | U42: 1.90744 | V42: NG | X42: 1.36136 | Y42: 52.57197627 | Z42: -45.55650813
N43: 50.90862656 | O43: -44.24661255 | P43: 38.50889969 | R43: 2.50696 | S43: 1.85043 | T43: -1.49013 | U43: 1.09709 | V43: NG | X43: 1.39626 | Y43: 52.4915953 | Z43: -45.49209422
N44: 51.76965714 | O44: -44.91238022 | P44: 38.43815231 | R44: 1.93863 | S44: 1.12055 | T44: -0.40294 | U44: 1.04559 | V44: NG | X44: 1.43117 | Y44: 52.41000622 | Z44: -45.42829912
N45: 53.34288025 | O45: -46.77219391 | P45: 38.01641083 | R45: 0.21408 | S45: 1.99812 | T45: 1.95251 | U45: 0.42449 | V45: OK | X45: 1.46608 | Y45: 52.32730844 | Z45: -45.36520055
N46: 50.08569336 | O46: -44.99993134 | P46: 38.27975845 | R46: 3.13698 | S46: 1.73217 | T46: -1.73215 | U46: 0.00800 | V46: OK | X46: 1.50098 | Y46: 52.24360271 | Z46: -45.30287538
N47: 49.36703873 | O47: -46.35736847 | P47: 37.97624207 | R47: -2.36472 | S47: 2.16269 | T47: -1.54224 | U47: -1.51616 | V47: NG | X47: 1.53589 | Y47: 52.15899101 | Z47: -45.24139955
N48: 49.8238945 | O48: -43.54669571 | P48: 38.68484497 | R48: 2.78103 | S48: 2.97120 | T48: -2.78014 | U48: 1.04825 | V48: NG | X48: 1.57080 | Y48: 52.07357644 | Z48: -45.18084796
N49: 51.91905975 | O49: -48.06184006 | P49: 37.58172226 | R49: -0.75942 | S49: 2.10400 | T49: 1.52590 | U49: -1.44860 | V49: NG | X49: 1.60570 | Y49: 51.98746305 | Z49: -45.12129437
N50: 50.33124924 | O50: -45.3794899 | P50: 38.28845215 | R50: 3.26438 | S50: 1.32326 | T50: -1.31329 | U50: -0.16208 | V50: OK | X50: 1.64061 | Y50: 51.90075576 | Z50: -45.06281136
N51: 51.10500717 | O51: -45.19329834 | P51: 38.3844986 | R51: 2.63699 | S51: 0.89821 | T51: -0.78626 | U51: 0.43425 | V51: OK | X51: 1.67552 | Y51: 51.81356021 | Z51: -45.00547017
N52: 51.52042389 | O52: -46.50730515 | P52: 37.98238373 | R52: -0.91969 | S52: 0.50772 | T52: 0.30771 | U52: -0.40385 | V52: OK | X52: 1.71042 | Y52: 51.72598264 | Z52: -44.94934065
N53: 50.19867325 | O53: -46.10271454 | P53: 38.08885956 | R53: -2.45196 | S53: 1.30537 | T53: -1.00707 | U53: -0.83055 | V53: OK | X53: 1.74533 | Y53: 51.63812974 | Z53: -44.89449121
N54: 50.86210251 | O54: -45.38499069 | P54: 38.28459549 | R54: 2.98533 | S54: 0.88609 | T54: -0.87529 | U54: 0.13790 | V54: OK | X54: 1.78024 | Y54: 51.55010856 | Z54: -44.84098865
N55: 51.20268631 | O55: -45.77553177 | P55: 38.08370209 | R55: 3.10577 | S55: 0.37253 | T55: -0.37229 | U55: 0.01334 | V55: OK | X55: 1.81514 | Y55: 51.46202632 | Z55: -44.78889818
N56: 50.92597198 | O56: -45.07892227 | P56: 38.34204865 | R56: 2.73898 | S56: 1.08531 | T56: -0.99852 | U56: 0.42525 | V56: OK | X56: 1.85005 | Y56: 51.37399035 | Z56: -44.73828324
N57: 51.75018311 | O57: -44.72470093 | P57: 38.47179794 | R57: 1.98795 | S57: 1.29961 | T57: -0.52654 | U57: 1.18816 | V57: NG | X57: 1.88496 | Y57: 51.2861079 | Z57: -44.68920551
N58: 51.63850021 | O58: -44.31032562 | P58: 38.41205597 | R58: 2.09988 | S58: 1.69534 | T58: -0.85570 | U58: 1.46354 | V58: NG | X58: 1.91986 | Y58: 51.19848605 | Z58: -44.64172478
N59: 51.14668655 | O59: -45.66594315 | P59: 38.19176483 | R59: 2.99507 | S59: 0.48623 | T59: -0.48102 | U59: 0.07099 | V59: OK | X59: 1.95477 | Y59: 51.11123154 | Z59: -44.59589891
N60: 54.69909286 | O60: -47.9164238 | P60: 37.69608688 | R60: 0.07114 | S60: 3.72919 | T60: 3.71976 | U60: 0.26508 | V60: NG | X60: 1.98968 | Y60: 51.02445069 | Z60: -44.55178371
N61: 49.62150574 | O61: -46.11353302 | P61: 38.09654999 | R61: -2.47036 | S61: 1.88192 | T61: -1.47365 | U61: -1.17046 | V61: NG | X61: 2.02458 | Y61: 50.93824922 | Z61: -44.50943294
N62: 50.35139465 | O62: -46.08438492 | P62: 38.17012405 | R62: -2.45739 | S62: 1.15170 | T62: -0.89248 | U62: -0.72794 | V62: OK | X62: 2.05949 | Y62: 50.85273216 | Z62: -44.4688982
N63: 52.53845596 | O63: -46.67075729 | P63: 37.9481926 | R63: 0.03737 | S63: 1.23625 | T63: 1.23538 | U63: 0.04618 | V63: OK | X63: 2.09440 | Y63: 50.7680037 | Z63: -44.43022887
N64: 53.11699295 | O64: -48.04070663 | P64: 37.64492416 | R64: -0.28986 | S64: 2.60368 | T64: 2.49506 | U64: -0.74418 | V64: NG | X64: 2.12930 | Y64: 50.68416706 | Z64: -44.39347206
N65: 51.18370056 | O65: -44.88162994 | P65: 38.4154892 | R65: 2.45729 | S65: 1.16224 | T65: -0.90057 | U65: 0.73469 | V65: OK | X65: 2.16421 | Y65: 50.60132439 | Z65: -44.35867256
N66: 49.02942657 | O66: -45.24460602 | P66: 38.21144104 | R66: 3.45573 | S66: 2.58348 | T66: -2.45705 | U66: -0.79828 | V66: NG | X66: 2.19911 | Y66: 50.51957661 | Z66: -44.32587276
N67: 50.91479492 | O67: -44.43044662 | P67: 38.58622742 | R67: =(ATAN2($N67-$A$3, $O67-$A$6))-$C$15 -> 2.53854 | S67: =SQRT(($N67-$A$3)^2+($O67-$A$6)^2) -> 1.67510 | T67: -1.37963 | U67: 0.95004 | V67: =IF(($T67/$A$9)^2 +($U67/$A$12)^2<=1, "OK", "NG") -> NG | X67: 2.23402 | Y67: =$A$3+$A$9*COS($X67)*COS($C$15)-$A$12*SIN($X67)*SIN($C$15) -> 50.43902333 | Z67: =$A$6+$A$9*COS($X67)*SIN($C$15)+$A$12*SIN($X67)*COS($C$15) -> -44.29511264
N68: 51.88448715 | O68: -45.74114609 | P68: 38.2766571 | R68: 1.20341 | S68: 0.46350 | T68: =$S68*COS($R68) -> 0.16648 | U68: =$S68*SIN($R68) -> 0.43257 | V68: OK | X68: 2.26893 | Y68: 50.35976269 | Z68: -44.26642965
N69: 51.00403595 | O69: -45.40565491 | P69: 38.15348816 | R69: 2.87707 | S69: 0.77410 | T69: -0.74717 | U69: 0.20239 | V69: OK | X69: 2.30383 | Y69: 50.28189125 | Z69: -44.23985875
N70: 51.60762405 | O70: -45.29545975 | P70: 38.3488121 | R70: 2.03008 | S70: 0.71271 | T70: -0.31595 | U70: 0.63886 | V70: OK | X70: 2.33874 | Y70: 50.20550389 | Z70: -44.21543231
N71: 51.31481552 | O71: -45.8737793 | P71: 38.20326233 | R71: 3.15419 | S71: 0.22411 | T71: -0.22409 | U71: -0.00282 | V71: OK | X71: 2.37365 | Y71: 50.13069367 | Z71: -44.1931801
N72: 52.01779175 | O72: -45.8092041 | P72: 38.18613052 | R72: 0.96391 | S72: 0.55183 | T72: 0.31471 | U72: 0.45328 | V72: OK | X72: 2.40855 | Y72: 50.05755174 | Z72: -44.17312921
N73: 51.30444336 | O73: -45.77003098 | P73: 38.07049942 | R73: 2.88637 | S73: 0.30187 | T73: -0.29210 | U73: 0.07621 | V73: OK | X73: 2.44346 | Y73: 49.98616721 | Z73: -44.15530409
N74: 51.13436127 | O74: -44.35010529 | P74: 38.57626724 | R74: 2.39975 | S74: 1.68992 | T74: -1.24585 | U74: 1.14179 | V74: NG | X74: 2.47837 | Y74: 49.91662706 | Z74: -44.13972644
N75: 51.25272369 | O75: -44.81986618 | P75: 38.45533752 | R75: 2.38821 | S75: 1.20576 | T75: -0.87945 | U75: 0.82488 | V75: OK | X75: 2.51327 | Y75: 49.849016 | Z75: -44.12641526
N76: 51.36887741 | O76: -46.53109741 | P76: 37.98574448 | R76: -1.20198 | S76: 0.54704 | T76: 0.19722 | U76: -0.51026 | V76: OK | X76: 2.54818 | Y76: 49.78341641 | Z76: -44.11538674
N77: 53.59226608 | O77: -46.9192276 | P77: 38.06033707 | R77: 0.19691 | S77: 2.28529 | T77: 2.24113 | U77: 0.44709 | V77: OK | X77: 2.58309 | Y77: 49.71990821 | Z77: -44.10665434
N78: 52.88015366 | O78: -47.10300446 | P78: 37.82293701 | R78: -0.06338 | S78: 1.76676 | T78: 1.76321 | U78: -0.11190 | V78: OK | X78: 2.61799 | Y78: 49.65856878 | Z78: -44.10022868
N79: 50.92570114 | O79: -46.2518692 | P79: 38.02633286 | R79: -2.11742 | S79: 0.62710 | T79: -0.32597 | U79: -0.53572 | V79: OK | X79: 2.65290 | Y79: 49.59947285 | Z79: -44.09611761
N80: 50.38888931 | O80: -45.03091049 | P80: 38.28800201 | R80: 3.03523 | S80: 1.47435 | T80: -1.46602 | U80: 0.15652 | V80: OK | X80: 2.68781 | Y80: 49.54269242 | Z80: -44.09432612
N81: 53.29744339 | O81: -45.03112411 | P81: 38.39988327 | R81: 1.10525 | S81: 2.04194 | T81: 0.91666 | U81: 1.82463 | V81: NG | X81: 2.72271 | Y81: 49.48829667 | Z81: -44.0948564
N82: 51.79232407 | O82: -45.56027603 | P82: 38.23583984 | R82: 1.59496 | S82: 0.52803 | T82: -0.01276 | U82: 0.52787 | V82: OK | X82: 2.75762 | Y82: 49.43635187 | Z82: -44.09770781
N83: 52.87992859 | O83: -45.72737122 | P83: 38.19857407 | R83: 0.80592 | S83: 1.40660 | T83: 0.97400 | U83: 1.01482 | V83: NG | X83: 2.79253 | Y83: 49.3869213 | Z83: -44.10287687
N84: 49.8531456 | O84: -45.32711411 | P84: 38.37923813 | R84: 3.36457 | S84: 1.77902 | T84: -1.73498 | U84: -0.39340 | V84: OK | X84: 2.82743 | Y84: 49.3400652 | Z84: -44.11035728
N85: 51.54442596 | O85: -44.3911438 | P85: 38.50927353 | R85: 2.15406 | S85: 1.60947 | T85: -0.88641 | U85: 1.34338 | V85: NG | X85: 2.86234 | Y85: 49.29584064 | Z85: -44.12013992
N86: 48.94986725 | O86: -45.2152977 | P86: 38.21593094 | R86: 3.45394 | S86: 2.66813 | T86: -2.53903 | U86: -0.81991 | V86: NG | X86: 2.89725 | Y86: 49.25430152 | Z86: -44.13221289
N87: 50.3692627 | O87: -46.13301849 | P87: 38.13044739 | R87: -2.41363 | S87: 1.13853 | T87: -0.84995 | U87: -0.75753 | V87: OK | X87: 2.93215 | Y87: 49.21549843 | Z87: -44.14656147
N88: 51.28985596 | O88: -45.40085602 | P88: 38.21992874 | R88: 2.51900 | S88: 0.63493 | T88: -0.51579 | U88: 0.37026 | V88: OK | X88: 2.96706 | Y88: 49.17947865 | Z88: -44.16316818
N89: 51.86568069 | O89: -46.08967972 | P89: 38.09659958 | R89: 0.37037 | S89: 0.37652 | T89: 0.35099 | U89: 0.13628 | V89: OK | X89: 3.00197 | Y89: 49.14628607 | Z89: -44.18201278
N90: 51.12366486 | O90: -45.34769821 | P90: 38.3900032 | R90: 2.70495 | S90: 0.75308 | T90: -0.68242 | U90: 0.31848 | V90: OK | X90: 3.03687 | Y90: 49.11596113 | Z90: -44.20307232
N91: 49.80413437 | O91: -45.60292435 | P91: 38.26568985 | R91: 3.52246 | S91: 1.74173 | T91: -1.61693 | U91: -0.64744 | V91: OK | X91: 3.07178 | Y91: 49.08854078 | Z91: -44.22632114
N92: 53.2770462 | O92: -47.60058975 | P92: 37.7481575 | R92: -0.12234 | S92: 2.39161 | T92: 2.37373 | U92: -0.29185 | V92: OK | X92: 3.10669 | Y92: 49.06405841 | Z92: -44.25173092
N93: 52.19750214 | O93: -45.86953354 | P93: 38.21166992 | R93: 0.79578 | S93: 0.70960 | T93: 0.49653 | U93: 0.50694 | V93: OK | X93: 3.14159 | Y93: 49.04254387 | Z93: -44.27927069
N94: 52.92218781 | O94: -47.69264603 | P94: 37.71997452 | R94: -0.26114 | S94: 2.21081 | T94: 2.13585 | U94: -0.57080 | V94: OK | X94: 3.17650 | Y94: 49.02402335 | Z94: -44.30890691
N95: 51.29899216 | O95: -45.2019043 | P95: 38.24781036 | R95: 2.42839 | S95: 0.82302 | T95: -0.62242 | U95: 0.53847 | V95: OK | X95: 3.21141 | Y95: 49.00851944 | Z95: -44.34060346
N96: 51.94018936 | O96: -45.67857361 | P96: 38.14974594 | R96: 1.24157 | S96: 0.54505 | T96: 0.17622 | U96: 0.51578 | V96: OK | X96: 3.24631 | Y96: 48.99605101 | Z96: -44.37432173
N97: 50.13415146 | O97: -45.42224503 | P97: 38.20460129 | R97: 3.35228 | S97: 1.48302 | T97: -1.45022 | U97: -0.31015 | V97: OK | X97: 3.28122 | Y97: 48.98663325 | Z97: -44.41002064
N98: 50.29022598 | O98: -46.12509155 | P98: 38.03554153 | R98: -2.42769 | S98: 1.21622 | T98: -0.91924 | U98: -0.79637 | V98: OK | X98: 3.31613 | Y98: 48.98027764 | Z98: -44.4476567
N99: 50.34180069 | O99: -45.77735138 | P99: 38.07437515 | R99: 3.56254 | S99: 1.17941 | T99: -1.07645 | U99: -0.48193 | V99: OK | X99: 3.35103 | Y99: =$A$3+$A$9*COS($X99)*COS($C$15)-$A$12*SIN($X99)*SIN($C$15) -> 48.97699193 | Z99: =$A$6+$A$9*COS($X99)*SIN($C$15)+$A$12*SIN($X99)*COS($C$15) -> -44.48718404
N100: 51.295681 | O100: -45.14523315 | P100: 38.36096191 | R100: 2.41629 | S100: 0.87885 | T100: -0.65764 | U100: 0.58299 | V100: OK | X100: 3.38594 | Y100: 48.97678012 | Z100: -44.52855452
N101: 50.1541481 | O101: -45.4811554 | P101: 38.1584549 | R101: 3.38450 | S101: 1.44240 | T101: -1.40005 | U101: -0.34694 | V101: OK | X101: 3.42085 | Y101: 48.97964246 | Z101: -44.57171773
N102: 51.07854462 | O102: -47.4052124 | P102: 37.69022751 | R102: -1.25132 | S102: 1.46705 | T102: 0.46076 | U102: -1.39282 | V102: NG | X102: 3.45575 | Y102: 48.98557546 | Z102: -44.61662108
N103: 49.64300919 | O103: -45.46665955 | P103: 38.14558792 | R103: 3.47278 | S103: 1.93206 | T103: -1.82707 | U103: -0.62824 | V103: OK | X103: 3.49066 | Y103: 48.99457191 | Z103: -44.66320987
N104: 51.35443878 | O104: -46.22250748 | P104: 38.05530548 | R104: -1.53924 | S104: 0.26589 | T104: 0.00839 | U104: -0.26576 | V104: OK | X104: 3.52557 | Y104: 49.00662084 | Z104: -44.71142732
N105: 53.49136734 | O105: -48.85039902 | P105: 37.34055328 | R105: -0.35013 | S105: 3.47711 | T105: 3.26615 | U105: -1.19271 | V105: NG | X105: 3.56047 | Y105: 49.02170756 | Z105: -44.76121471
N106: 52.61550903 | O106: -45.85979462 | P106: 38.1108551 | R106: 0.73590 | S106: 1.12429 | T106: 0.83335 | U106: 0.75468 | V106: OK | X106: 3.59538 | Y106: 49.0398137 | Z106: -44.81251136
N107: 51.02199173 | O107: -44.22127151 | P107: 38.60815048 | R107: 2.44419 | S107: 1.84184 | T107: -1.41180 | U107: 1.18287 | V107: NG | X107: 3.63028 | Y107: 49.0609172 | Z107: -44.86525479
N108: 52.67387772 | O108: -45.78616714 | P108: 38.17782593 | R108: 0.79105 | S108: 1.19319 | T108: 0.83893 | U108: 0.84847 | V108: OK | X108: 3.66519 | Y108: 49.08499234 | Z108: -44.91938073
N109: 51.92130661 | O109: -46.56308746 | P109: 37.92705536 | R109: -0.31758 | S109: 0.70325 | T109: 0.66809 | U109: -0.21960 | V109: OK | X109: 3.70010 | Y109: 49.1120098 | Z109: -44.97482323
N110: 49.58534241 | O110: -44.94309235 | P110: 38.3527298 | R110: 3.24807 | S110: 2.18700 | T110: -2.17461 | U110: -0.23243 | V110: OK | X110: 3.73500 | Y110: 49.14193666 | Z110: -45.03151476
N111: 52.72697067 | O111: -45.63723373 | P111: 38.24388504 | R111: 0.89834 | S111: 1.27948 | T111: 0.79700 | U111: 1.00092 | V111: NG | X111: 3.76991 | Y111: 49.17473646 | Z111: -45.08938624
N112: 50.97730637 | O112: -45.36804581 | P112: 38.35019684 | R112: 2.87271 | S112: 0.82011 | T112: -0.79064 | U112: 0.21786 | V112: OK | X112: 3.80482 | Y112: 49.21036923 | Z112: -45.14836716
N113: 50.52857208 | O113: -45.94796371 | P113: 37.99762344 | R113: 3.69894 | S113: 0.97282 | T113: -0.82559 | U113: -0.51456 | V113: OK | X113: 3.83972 | Y113: 49.24879156 | Z113: -45.20838566
N114: 51.0776062 | O114: -45.44402313 | P114: 38.1274147 | R114: 2.83136 | S114: 0.69823 | T114: -0.66490 | U114: 0.21315 | V114: OK | X114: 3.87463 | Y114: 49.28995664 | Z114: -45.26936862
N115: 51.26741409 | O115: -44.0891037 | P115: 38.53648758 | R115: 2.30278 | S115: 1.92500 | T115: -1.28657 | U115: 1.43191 | V115: NG | X115: 3.90954 | Y115: 49.33381432 | Z115: -45.33124175
N116: 51.62729263 | O116: -46.43149948 | P116: 37.91862869 | R116: -0.67307 | S116: 0.44988 | T116: 0.35177 | U116: -0.28045 | V116: OK | X116: 3.94444 | Y116: 49.38031117 | Z116: -45.39392965
N117: 50.55247116 | O117: -45.75632095 | P117: 38.17473602 | R117: 3.50074 | S117: 0.97836 | T117: -0.91594 | U117: -0.34387 | V117: OK | X117: 3.97935 | Y117: 49.42939053 | Z117: -45.45735596
N118: 52.91225052 | O118: -46.2840271 | P118: 38.04205704 | R118: 0.41240 | S118: 1.44053 | T118: 1.31976 | U118: 0.57737 | V118: OK | X118: 4.01426 | Y118: 49.4809926 | Z118: -45.52144339
N119: 50.99445724 | O119: -45.65095901 | P119: 38.10541916 | R119: 3.14818 | S119: 0.61433 | T119: -0.61432 | U119: -0.00405 | V119: OK | X119: 4.04916 | Y119: 49.53505453 | Z119: -45.58611387
N120: 53.68991089 | O120: -45.64359665 | P120: 38.1492424 | R120: 0.77220 | S120: 2.21872 | T120: 1.58945 | U120: 1.54803 | V120: NG | X120: 4.08407 | Y120: 49.59151044 | Z120: -45.65128861
N121: 53.14336777 | O121: -47.55807495 | P121: 37.77404022 | R121: -0.14790 | S121: 2.26457 | T121: 2.23984 | U121: -0.33370 | V121: OK | X121: 4.11898 | Y121: 49.65029155 | Z121: -45.7168882
N122: 53.52032089 | O122: -47.31557465 | P122: 37.75693893 | R122: 0.03367 | S122: 2.41090 | T122: 2.40953 | U122: 0.08115 | V122: OK | X122: 4.15388 | Y122: 49.71132625 | Z122: -45.78283272
N123: 52.08885574 | O123: -47.25047302 | P123: 37.85149384 | R123: -0.51983 | S123: 1.38218 | T123: 1.19960 | U123: -0.68657 | V123: OK | X123: 4.18879 | Y123: 49.77454017 | Z123: -45.84904183
N124: 50.26647568 | O124: -44.15591812 | P124: 38.61242676 | R124: 2.77122 | S124: 2.21861 | T124: -2.06817 | U124: 0.80306 | V124: NG | X124: 4.22370 | Y124: 49.8398563 | Z124: -45.91543485
N125: 51.49225998 | O125: -45.97319794 | P125: 38.1048584 | R125: 2.46280 | S125: 0.02790 | T125: -0.02171 | U125: 0.01752 | V125: OK | X125: 4.25860 | Y125: 49.90719505 | Z125: -45.9819309
N126: 51.16726303 | O126: -44.26228333 | P126: 38.51112366 | R126: 2.37085 | S126: 1.76929 | T126: -1.26928 | U126: 1.23260 | V126: NG | X126: 4.29351 | Y126: 49.97647439 | Z126: -46.04844897
N127: 51.02433395 | O127: -46.19669342 | P127: 38.03813171 | R127: -2.13863 | S127: 0.51473 | T127: -0.27682 | U127: -0.43395 | V127: OK | X127: 4.32842 | Y127: 50.04760992 | Z127: -46.11490801
N128: 52.12247467 | O128: -46.81727982 | P128: 38.01477051 | R128: -0.30902 | S128: 1.02734 | T128: 0.97867 | U128: -0.31244 | V128: OK | X128: 4.36332 | Y128: 50.12051496 | Z128: -46.18122705
N129: 52.49181366 | O129: -47.92007065 | P129: 37.59000778 | R129: -0.48313 | S129: 2.16110 | T129: 1.91375 | U129: -1.00395 | V129: NG | X129: 4.39823 | Y129: 50.19510068 | Z129: -46.24732529
N130: 49.69526672 | O130: -45.74435425 | P130: 38.10573196 | R130: 3.61174 | S130: 1.82275 | T130: -1.62498 | U130: -0.82574 | V130: OK | X130: 4.43314 | Y130: 50.27127623 | Z130: -46.31312221
N131: 52.48129272 | O131: -46.27164459 | P131: 38.07854462 | R131: =(ATAN2($N131-$A$3, $O131-$A$6))-$C$15 -> 0.34080 | S131: =SQRT(($N131-$A$3)^2+($O131-$A$6)^2) -> 1.01820 | T131: 0.95964 | U131: 0.34033 | V131: =IF(($T131/$A$9)^2 +($U131/$A$12)^2<=1, "OK", "NG") -> OK | X131: 4.46804 | Y131: =$A$3+$A$9*COS($X131)*COS($C$15)-$A$12*SIN($X131)*SIN($C$15) -> 50.34894879 | Z131: =$A$6+$A$9*COS($X131)*SIN($C$15)+$A$12*SIN($X131)*COS($C$15) -> -46.37853763
N132: 51.56025314 | O132: -47.0750351 | P132: 37.88113785 | R132: -0.90394 | S132: 1.07672 | T132: =$S132*COS($R132) -> 0.66597 | U132: =$S132*SIN($R132) -> -0.84606 | V132: OK | X132: 4.50295 | Y132: 50.42802373 | Z132: -46.44349187
N133: 52.30636978 | O133: -43.48691177 | P133: 38.8176384 | R133: 1.87117 | S133: 2.63929 | T133: -0.78091 | U133: 2.52112 | V133: NG | X133: 4.53786 | Y133: 50.5084047 | Z133: -46.50790578
N134: 51.63939285 | O134: -46.44160843 | P134: 38.05069733 | R134: -0.65418 | S134: 0.46309 | T134: 0.36748 | U134: -0.28179 | V134: OK | X134: 4.57276 | Y134: 50.58999378 | Z134: -46.57170088
N135: 50.61688995 | O135: -47.74178314 | P135: 37.6979866 | R135: -1.42917 | S135: 1.95287 | T135: 0.27564 | U135: -1.93332 | V135: NG | X135: 4.60767 | Y135: 50.67269156 | Z135: -46.63479945
N136: 52.32070541 | O136: -46.26796722 | P136: 37.893013 | R136: 0.29527 | S136: 0.86334 | T136: 0.82598 | U136: 0.25123 | V136: OK | X136: 4.64258 | Y136: 50.75639729 | Z136: -46.69712462
N137: 52.73887634 | O137: -47.34945297 | P137: 37.72102737 | R137: -0.21723 | S137: 1.83189 | T137: 1.78884 | U137: -0.39482 | V137: OK | X137: 4.67748 | Y137: 50.84100899 | Z137: -46.75860045
N138: 51.21457672 | O138: -44.88832855 | P138: 38.29441071 | R138: 2.43298 | S138: 1.14773 | T138: -0.87143 | U138: 0.74692 | V138: OK | X138: 4.71239 | Y138: 50.92642356 | Z138: -46.81915204
N139: 51.96727753 | O139: -46.27616882 | P139: 38.12541199 | R139: 0.07708 | S139: 0.54279 | T139: 0.54118 | U139: 0.04180 | V139: OK | X139: 4.74730 | Y139: 51.01253695 | Z139: -46.87870563
N140: 52.6567688 | O140: -45.53118896 | P140: 38.31355667 | R140: 0.99591 | S140: 1.24816 | T140: 0.67867 | U140: 1.04752 | V140: NG | X140: 4.78220 | Y140: 51.09924424 | Z140: -46.93718864
N141: 51.28213882 | O141: -45.86259079 | P141: 37.97879791 | R141: 3.18976 | S141: 0.25757 | T141: -0.25728 | U141: -0.01240 | V141: OK | X141: 4.81711 | Y141: 51.18643979 | Z141: -46.99452983
N142: 54.30470276 | O142: -46.23020172 | P142: 38.1306572 | R142: 0.52897 | S142: 2.81413 | T142: 2.42952 | U142: 1.42014 | V142: NG | X142: 4.85202 | Y142: 51.27401736 | Z142: -47.05065935
N143: 52.09502411 | O143: -45.76051331 | P143: 38.24824142 | R143: 0.99351 | S143: 0.64141 | T143: 0.35005 | U143: 0.53747 | V143: OK | X143: 4.88692 | Y143: 51.36187026 | Z143: -47.10550879
N144: 52.26367569 | O144: -46.05817795 | P144: 37.94274902 | R144: 0.53483 | S144: 0.76589 | T144: 0.65894 | U144: 0.39037 | V144: OK | X144: 4.92183 | Y144: 51.44989144 | Z144: -47.15901135
N145: 51.06084061 | O145: -45.45822906 | P145: 38.20338058 | R145: 2.86283 | S145: 0.69741 | T145: -0.67049 | U145: 0.19190 | V145: OK | X145: 4.95674 | Y145: 51.53797368 | Z145: -47.21110182
N146: 51.39212418 | O146: -46.11133957 | P146: 38.14146042 | R146: -1.72953 | S146: 0.15503 | T146: -0.02450 | U146: -0.15308 | V146: OK | X146: 4.99164 | Y146: 51.62600965 | Z146: -47.26171676
N147: 51.46622467 | O147: -45.09010315 | P147: 38.33175659 | R147: 2.21876 | S147: 0.91052 | T147: -0.54956 | U147: 0.72597 | V147: OK | X147: 5.02655 | Y147: 51.7138921 | Z147: -47.31079449
N148: 50.44762802 | O148: -46.13476562 | P148: 37.92706299 | R148: -2.40336 | S148: 1.06097 | T148: -0.78475 | U148: -0.71401 | V148: OK | X148: 5.06145 | Y148: 51.80151395 | Z148: -47.35827522
N149: 51.11557388 | O149: -46.55809402 | P149: 37.98711014 | R149: -1.56311 | S149: 0.67768 | T149: 0.00521 | U149: -0.67766 | V149: OK | X149: 5.09636 | Y149: 51.88876846 | Z149: -47.40410109
N150: 51.25650787 | O150: -44.99581909 | P150: 38.34911346 | R150: 2.41955 | S150: 1.03328 | T150: -0.77543 | U150: 0.68292 | V150: OK | X150: 5.13127 | Y150: 51.97554931 | Z150: -47.44821629
N151: 52.90125275 | O151: -45.25163651 | P151: 38.32893372 | R151: 1.10139 | S151: 1.58857 | T151: 0.71860 | U151: 1.41675 | V151: NG | X151: 5.16617 | Y151: 52.06175078 | Z151: -47.49056706
N152: 51.24048996 | O152: -44.64167786 | P152: 38.4319191 | R152: 2.37044 | S152: 1.38289 | T152: -0.99168 | U152: 0.96382 | V152: NG | X152: 5.20108 | Y152: 52.14726784 | Z152: -47.5311018
N153: 50.25136566 | O153: -45.73056793 | P153: 38.15871429 | R153: 3.53993 | S153: 1.27737 | T153: -1.17736 | U153: -0.49548 | V153: OK | X153: 5.23599 | Y153: 52.2319963 | Z153: -47.56977113
N154: 52.15966797 | O154: -45.59978104 | P154: 38.18267822 | R154: 1.15619 | S154: 0.77158 | T154: 0.31081 | U154: 0.70621 | V154: OK | X154: 5.27089 | Y154: 52.31583294 | Z154: -47.60652794
N155: 50.34290314 | O155: -45.31050491 | P155: 38.16680527 | R155: 3.21507 | S155: 1.34695 | T155: -1.34332 | U155: -0.09888 | V155: OK | X155: 5.30580 | Y155: 52.39867561 | Z155: -47.64132744
N156: 51.90497589 | O156: -47.17527771 | P156: 37.83646774 | R156: -0.62809 | S156: 1.24309 | T156: 1.00585 | U156: -0.73045 | V156: OK | X156: 5.34071 | Y156: 52.48042339 | Z156: -47.67412724
N157: 50.72537231 | O157: -45.98170471 | P157: 38.09588242 | R157: 3.72884 | S157: 0.77484 | T157: -0.64503 | U157: -0.42932 | V157: OK | X157: 5.37561 | Y157: 52.56097667 | Z157: -47.70488736
N158: 52.19823074 | O158: -46.31887817 | P158: 38.03679657 | R158: 0.18246 | S158: 0.76760 | T158: 0.75486 | U158: 0.13928 | V158: OK | X158: 5.41052 | Y158: 52.64023731 | Z158: -47.73357035
N159: 50.84156799 | O159: -47.68060303 | P159: 37.72376251 | R159: -1.33333 | S159: 1.80498 | T159: 0.42460 | U159: -1.75433 | V159: NG | X159: 5.44543 | Y159: 52.71810875 | Z159: -47.76014125
N160: 50.87292099 | O160: -44.57106781 | P160: 38.48152542 | R160: 2.59520 | S160: 1.56047 | T160: -1.33327 | U160: 0.81083 | V160: OK | X160: 5.48033 | Y160: 52.79449611 | Z160: -47.78456769
N161: 52.49765396 | O161: -46.57356644 | P161: 37.94205475 | R161: 0.08909 | S161: 1.15078 | T161: 1.14621 | U161: 0.10239 | V161: OK | X161: 5.51524 | Y161: 52.86930633 | Z161: -47.8068199
N162: 52.27194595 | O162: -48.21477509 | P162: 37.65463257 | R162: -0.62455 | S162: 2.34545 | T162: 1.90268 | U162: -1.37147 | V162: NG | X162: 5.55015 | Y162: 52.94244826 | Z162: -47.82687079
N163: 51.68058014 | O163: -46.90011215 | P163: 37.94055939 | R163: -0.76194 | S163: 0.91805 | T163: 0.66421 | U163: -0.63375 | V163: OK | X163: 5.58505 | Y163: =$A$3+$A$9*COS($X163)*COS($C$15)-$A$12*SIN($X163)*SIN($C$15) -> 53.01383279 | Z163: =$A$6+$A$9*COS($X163)*SIN($C$15)+$A$12*SIN($X163)*COS($C$15) -> -47.84469591
N164: 50.45923615 | O164: -46.52804184 | P164: 37.98267365 | R164: -2.06121 | S164: 1.16706 | T164: -0.54967 | U164: -1.02950 | V164: NG | X164: 5.61996 | Y164: 53.08337294 | Z164: -47.86027356
N165: 52.39152908 | O165: -46.48651886 | P165: 37.93634033 | R165: 0.11132 | S165: 1.01564 | T165: 1.00935 | U165: 0.11283 | V165: OK | X165: 5.65487 | Y165: 53.150984 | Z165: -47.87358474
N166: 51.77044678 | O166: -47.42678452 | P166: 37.70491028 | R166: -0.77260 | S166: 1.45219 | T166: 1.03991 | U166: -1.01363 | V166: NG | X166: 5.68977 | Y166: 53.21658359 | Z166: -47.88461326
N167: 54.1062355 | O167: -45.54450607 | P167: 38.39563751 | R167: 0.78389 | S167: 2.64574 | T167: 1.87364 | U167: 1.86799 | V167: NG | X167: 5.72468 | Y167: 53.28009179 | Z167: -47.89334566
N168: 51.31711197 | O168: -46.48178101 | P168: 37.9543457 | R168: -1.32274 | S168: 0.51533 | T168: 0.12653 | U168: -0.49955 | V168: OK | X168: 5.75959 | Y168: 53.34143122 | Z168: -47.89977132
N169: 49.69710159 | O169: -45.26163483 | P169: 38.30724335 | R169: 3.36375 | S169: 1.94824 | T169: -1.90036 | U169: -0.42927 | V169: OK | X169: 5.79449 | Y169: 53.40052715 | Z169: -47.90388239
N170: 52.41695023 | O170: -45.55783081 | P170: 38.19502258 | R170: 1.06019 | S170: 1.01799 | T170: 0.49750 | U170: 0.88814 | V170: OK | X170: 5.82940 | Y170: 53.45730758 | Z170: -47.90567388
N171: 52.37935638 | O171: -47.15868759 | P171: 37.85605621 | R171: -0.31074 | S171: 1.45459 | T171: 1.38492 | U171: -0.44476 | V171: OK | X171: 5.86431 | Y171: 53.51170333 | Z171: -47.9051436
N172: 51.8717308 | O172: -46.58704376 | P172: 37.85762024 | R172: -0.39544 | S172: 0.69484 | T172: 0.64122 | U172: -0.26766 | V172: OK | X172: 5.89921 | Y172: 53.56364813 | Z172: -47.90229219
N173: 51.40976715 | O173: -45.05962753 | P173: 38.25603867 | R173: 2.27732 | S173: 0.94469 | T173: -0.61329 | U173: 0.71855 | V173: OK | X173: 5.93412 | Y173: 53.6130787 | Z173: -47.89712313
N174: 52.992733 | O174: -44.58036423 | P174: 38.47686768 | R174: 1.37117 | S174: 2.06000 | T174: 0.40851 | U174: 2.01909 | V174: NG | X174: 5.96903 | Y174: 53.6599348 | Z174: -47.88964272
N175: 52.55670929 | O175: -46.37385178 | P175: 38.12782288 | R175: 0.27082 | S175: 1.12089 | T175: 1.08004 | U175: 0.29986 | V175: OK | X175: 6.00393 | Y175: 53.70415936 | Z175: -47.87986008
N176: 52.9105072 | O176: -45.27771378 | P176: 38.41299057 | R176: 1.08413 | S176: 1.58469 | T176: 0.74113 | U176: 1.40070 | V176: NG | X176: 6.03884 | Y176: 53.74569848 | Z176: -47.86778711
N177: 52.36397552 | O177: -45.81401825 | P177: 38.27465057 | R177: 0.82289 | S177: 0.88377 | T177: 0.60105 | U177: 0.64790 | V177: OK | X177: 6.07375 | Y177: 53.78450157 | Z177: -47.85343853
N178: 49.96205902 | O178: -44.9789238 | P178: 38.33563995 | R178: 3.16636 | S178: 1.84604 | T178: -1.84547 | U178: -0.04571 | V178: OK | X178: 6.10865 | Y178: 53.82052135 | Z178: -47.83683182
N179: 50.63447189 | O179: -46.18765259 | P179: 38.09447861 | R179: -2.31722 | S179: 0.88564 | T179: -0.60137 | U179: -0.65016 | V179: OK | X179: 6.14356 | Y179: 53.85371393 | Z179: -47.81798722
N180: 51.04285431 | O180: -46.18679428 | P180: 38.04463959 | R180: -2.14282 | S180: 0.49384 | T180: -0.26733 | U180: -0.41522 | V180: OK | X180: 6.17847 | Y180: 53.88403887 | Z180: -47.79692768
N181: 51.81202316 | O181: -46.07857513 | P181: 38.08150864 | R181: 0.36417 | S181: 0.32176 | T181: 0.30066 | U181: 0.11460 | V181: OK | X181: 6.21337 | Y181: 53.91145922 | Z181: -47.77367886
N182: 52.37255859 | O182: -47.4698143 | P182: 37.7761879 | R182: -0.42419 | S182: 1.70930 | T182: 1.55781 | U182: -0.70352 | V182: OK | X182: 6.24828 | Y182: 53.93594159 | Z182: -47.74826908
N183: 52.29894638 | O183: -46.17118073 | P183: 38.0564003 | R183: 0.39980 | S183: 0.81708 | T183: 0.75264 | U183: 0.31803 | V183: OK | X183: 6.28319 | Y183: 53.95745613 | Z183: -47.72072931
N184: 54.04390335 | O184: -47.60969162 | P184: 37.75866318 | R184: 0.04670 | S184: 3.01041 | T184: 3.00712 | U184: 0.14054 | V184: NG
N185: 51.34068298 | O185: -45.17981339 | P185: 38.33521271 | R185: 2.37352 | S185: 0.83552 | T185: -0.60094 | U185: 0.58048 | V185: OK
N186: 51.14706039 | O186: -45.65951157 | P186: 38.03040695 | R186: 2.98501 | S186: 0.49041 | T186: -0.48441 | U186: 0.07647 | V186: OK
N187: 50.82472992 | O187: -44.0994606 | P187: 38.53348541 | R187: 2.52305 | S187: 2.01694 | T187: -1.64325 | U187: 1.16951 | V187: NG
N188: 50.86952591 | O188: -46.91504288 | P188: 37.85997772 | R188: -1.56324 | S188: 1.11122 | T188: 0.00839 | U188: -1.11118 | V188: NG
N189: 51.42648697 | O189: -44.91819763 | P189: 38.37754059 | R189: 2.24951 | S189: 1.08430 | T189: -0.68071 | U189: 0.84400 | V189: OK
N190: 51.27580643 | O190: -45.42418289 | P190: 38.11326218 | R190: 2.55295 | S190: 0.61792 | T190: -0.51392 | U190: 0.34309 | V190: OK
N191: 49.76841736 | O191: -44.69486618 | P191: 38.37757874 | R191: 3.10658 | S191: 2.16835 | T191: -2.16702 | U191: 0.07591 | V191: OK
N192: 51.92743301 | O192: -46.34235382 | P192: 38.06793976 | R192: -0.06446 | S192: 0.54764 | T192: 0.54650 | U192: -0.03527 | V192: OK
N193: 50.62948227 | O193: -45.43484879 | P193: 38.13659286 | R193: 3.17664 | S193: 1.03788 | T193: -1.03724 | U193: -0.03636 | V193: OK
N194: 52.54434204 | O194: -46.66135788 | P194: 38.02332687 | R194: 0.04634 | S194: 1.23614 | T194: 1.23481 | U194: 0.05726 | V194: OK
N195: 52.06288528 | O195: -46.31674957 | P195: 38.10680008 | R195: =(ATAN2($N195-$A$3, $O195-$A$6))-$C$15 -> 0.09830 | S195: =SQRT(($N195-$A$3)^2+($O195-$A$6)^2) -> 0.64589 | T195: 0.64277 | U195: 0.06339 | V195: =IF(($T195/$A$9)^2 +($U195/$A$12)^2<=1, "OK", "NG") -> OK
N196: 53.38220215 | O196: -47.28022385 | P196: 37.72557449 | R196: 0.01357 | S196: 2.27633 | T196: =$S196*COS($R196) -> 2.27612 | U196: =$S196*SIN($R196) -> 0.03089 | V196: OK
N197: 51.86559296 | O197: -46.99090195 | P197: 37.88499832 | R197: -0.60648 | S197: 1.05619 | T197: 0.86783 | U197: -0.60200 | V197: OK
N198: 52.07605743 | O198: -46.42250061 | P198: 37.94931793 | R198: -0.02195 | S198: 0.71439 | T198: 0.71422 | U198: -0.01568 | V198: OK
N199: 51.11613846 | O199: -46.30682373 | P199: 38.09693146 | R199: -1.85641 | S199: 0.49142 | T199: -0.13845 | U199: -0.47151 | V199: OK
N200: 50.93319702 | O200: -44.5525589 | P200: 38.44462204 | R200: 2.55490 | S200: 1.55446 | T200: -1.29452 | U200: 0.86057 | V200: OK
... 802 more rows
